lending/lending_fUSD_20250121
["ID","MTS","AMOUNT","RATE_DAILY","PERIOD"]
[349810961,1737442238043,-218.50679136,0.000219,2]
[349810962,1737442238053,-12338.98776527,0.000219,2]
[349810963,1737442238062,-1109.31,0.000219,31]
[349810964,1737442238071,-1109.31,0.000219,31]
[349810965,1737442238080,-1109.31,0.000219,31]
[349810966,1737442238089,-1109.31,0.000219,31]
[349810967,1737442238098,-1109.31,0.000219,31]
[349810968,1737442238107,-1109.31,0.000219,31]
[349810969,1737442238115,-1109.31,0.000219,31]
[349810970,1737442238124,-1109.31,0.000219,31]
[349810971,1737442238133,-1109.31,0.000219,31]
[349810972,1737442238142,-1109.31,0.000219,31]
[349810973,1737442238151,-1109.31,0.000219,31]
[349810974,1737442238160,-1109.31,0.000219,31]
[349810976,1737442238169,-1109.31,0.000219,31]
[349810977,1737442238178,-1109.31,0.000219,31]
[349810978,1737442238187,-1109.31,0.000219,31]
[349810979,1737442238196,-1109.31,0.000219,31]
[349810980,1737442238204,-1646.62600326,0.000219,2]
[349810981,1737442238213,-690.02139108,0.000219,2]
[349810982,1737442238222,-247.7897643,0.000219,2]
[349810983,1737442238231,-500.0,0.00021917,2]
[349810984,1737442238240,-3051.78,0.00021917,2]
[349810985,1737442238249,-350.0,0.00021917,2]
[349810986,1737442238258,-150.0,0.00021918,2]
[349810987,1737442238267,-60000.0,0.0002192,3]
[349810988,1737442238276,-500.0,0.00021973,2]
[349810989,1737442238287,-150.0,0.00021973,4]
[349810990,1737442238296,-150.0,0.00021973,4]
[349810991,1737442238306,-150.0,0.00021973,4]
[349810992,1737442238315,-500.0,0.00021973,2]
[349810993,1737442238324,-500.0,0.00021973,2]
[349810994,1737442238333,-353.86985071,0.00021973,2]
[349810995,1737442238342,-239.25136534,0.00021989,2]
[349810996,1737442238351,-239.25136534,0.00021989,2]
[349810997,1737442238360,-239.25136534,0.00021989,2]
[349810998,1737442238369,-469.07037734,0.00021999,10]
[349810999,1737442238377,-500.0,0.00021999,2]
[349811000,1737442238386,-500.0,0.00021999,2]
[349811001,1737442238395,-500.0,0.00021999,2]
[349811002,1737442238404,-500.0,0.00021999,2]
[349811003,1737442238413,-30108.86887276,0.00021999,2]
[349811004,1737442238422,-1000.0,0.00021999,2]
[349811005,1737442238431,-523.08,0.00021999,2]
[349811006,1737442238440,-1009.58,0.00021999,2]
[349811007,1737442238449,-500.0,0.00021999,2]
[349811008,1737442238458,-500.0,0.00021999,2]
[349811009,1737442238467,-666.0,0.00021999,2]
[349811010,1737442238476,-500.0,0.00021999,2]
[349811011,1737442238485,-500.0,0.00021999,2]
[349811012,1737442238494,-1470.892011,0.00021999,2]
[349811013,1737442238505,-500.0,0.00021999,2]
[349811014,1737442238515,-500.0,0.00021999,2]
[349811015,1737442238524,-500.0,0.00021999,2]
[349811016,1737442238535,-500.0,0.00021999,2]
[349811017,1737442238545,-519.05,0.00021999,2]
[349811018,1737442238554,-672.64,0.00021999,2]
[349811019,1737442238563,-572.4716349,0.00021999,2]
[349811020,1737442238572,-500.0,0.00021999,2]
[349811021,1737442238581,-944.32,0.00021999,2]
[349811022,1737442238589,-796.07,0.00021999,2]
[349811023,1737442238599,-500.0,0.00021999,2]
[349811024,1737442238608,-878.23,0.00021999,2]
[349811025,1737442238617,-500.0,0.00021999,2]
[349811026,1737442238626,-500.0,0.00021999,2]
[349811027,1737442238636,-605.27,0.00021999,2]
[349811028,1737442238645,-500.0,0.00021999,2]
[349811029,1737442238654,-163.32923176,0.00021999,2]
[349811030,1737442238664,-1643.2065629,0.00021999,2]
[349811031,1737442238674,-332.5799057,0.00021999,2]
[349811032,1737442238683,-500.0,0.00021999,2]
[349811033,1737442238693,-666.0,0.00021999,2]
[349811034,1737442238703,-500.0,0.00021999,2]
[349811035,1737442238713,-500.0,0.00021999,2]
[349811036,1737442238722,-500.0,0.00021999,2]
[349811037,1737442238731,-500.0,0.00021999,2]
[349811038,1737442238741,-500.0,0.00021999,2]
[349811039,1737442238750,-500.0,0.00021999,2]
[349811040,1737442238759,-500.0,0.00021999,2]
[349811041,1737442238769,-500.0,0.00021999,2]
[349811042,1737442238779,-500.0,0.00021999,2]
[349811043,1737442238792,-500.0,0.00021999,2]
[349811044,1737442238802,-500.0,0.00021999,2]
[349811045,1737442238811,-500.0,0.00021999,2]
[349811046,1737442238820,-500.0,0.00021999,2]
[349811047,1737442238830,-500.0,0.00021999,2]
[349811048,1737442238840,-500.0,0.00021999,2]
[349811049,1737442238849,-500.0,0.00021999,2]
[349811050,1737442238858,-500.0,0.00021999,2]
[349811051,1737442238867,-500.0,0.00021999,2]
[349811052,1737442238876,-11730.9509473,0.00021999,2]
[349811053,1737442238886,-500.0,0.00021999,2]
[349811054,1737442238895,-500.0,0.00021999,2]
[349811055,1737442238904,-500.0,0.00021999,2]
[349811056,1737442238914,-943.9727258,0.00021999,2]
[349811057,1737442238923,-638.33,0.00021999,2]
[349811058,1737442238932,-500.0,0.00021999,2]
[349811059,1737442238942,-500.0,0.00021999,2]
[349811060,1737442238951,-500.0,0.00021999,2]
[349811061,1737442238960,-500.0,0.00021999,2]
[349811062,1737442238970,-13501.59,0.00021999,2]
[349811063,1737442238979,-500.0,0.00021999,2]
[349811064,1737442238989,-500.0,0.00021999,2]
[349811065,1737442238998,-500.0,0.00021999,2]
[349811066,1737442239009,-500.0,0.00021999,2]
[349811067,1737442239018,-500.0,0.00021999,2]
[349811068,1737442239027,-500.0,0.00021999,2]
[349811069,1737442239039,-1069.37,0.00021999,2]
[349811070,1737442239048,-678.92,0.00021999,2]
[349811071,1737442239058,-198.01371088,0.00021999,2]
[349811072,1737442239067,-500.0,0.00021999,2]
[349811073,1737442239076,-667.32,0.00021999,2]
[349811074,1737442239085,-9552.40248591,0.00021999,2]
[349811075,1737442239095,-2131.0,0.00021999,2]
[349811076,1737442239104,-3209933.16619894,0.00022,2]
[349811077,1737442239121,-69871.73950855,0.00022,2]
[349811081,1737442239928,-527.61,0.00021221,30]
[349811082,1737442239938,-500.0,0.00021999,2]
[349811083,1737442239947,-309826.971,0.00022,2]
[349811095,1737442242770,-5850.80719093,0.00022,2]
[349811096,1737442242818,-91.33082201,0.00022,2]
[349811097,1737442242893,-1148.95554438,0.00022,2]
[349811098,1737442245648,-1521.75,0.00021999,2]
[349811099,1737442245789,-253.75888776,0.00021999,2]
[349811100,1737442245800,-138.49111224,0.00021999,2]
[349811101,1737442245810,-163.31889268,0.00022,2]
[349811102,1737442245863,-271.1310696,0.00022,2]
[349811103,1737442245914,-405.6,0.00022,2]
[349811106,1737442572928,157.24,0.00010137,2]
[349811107,1737442803783,2036.83573958,0.00024,120]
[349811108,1737443103906,620.0,0.00024,120]
[349811109,1737443227145,-157.24,0.00016813,2]
[349811110,1737443227166,-398.65880893,0.00018,2]
[349811111,1737443250185,-1730.67833496,0.00018,2]
[349811112,1737443349088,-3199.16796211,0.00018,2]
[349811113,1737443349110,-767.68,0.00018596,2]
[349811114,1737443404587,312.0,0.00024,120]
[349811130,1737443431768,-200.41293132,0.00019078,2]
[349811132,1737443431778,-159.573846,0.00019178,2]
[349811134,1737443431787,-724.0108,0.00019626,2]
[349811136,1737443431798,-1032.28218952,0.00019726,14]
[349811138,1737443431807,-311.91,0.00020491,2]
[349811140,1737443431816,-200.0,0.00020564,2]
[349811142,1737443431825,-243.25,0.00020584,2]
[349811144,1737443431834,-250.0,0.00020584,2]
[349811147,1737443431844,-156.32,0.00020633,2]
[349811149,1737443431857,-164.7,0.00020642,2]
[349811151,1737443431866,-1500.0,0.00020642,2]
[349811152,1737443431875,-1054.0,0.00020712,2]
[349811155,1737443431885,-174.42,0.00020713,2]
[349811157,1737443431895,-300.0,0.00020736,2]
[349811159,1737443431904,-1692.82,0.00020737,2]
[349811161,1737443431914,-2357.30023316,0.00020761,2]
[349811168,1737443431982,-1189.367004,0.00020761,2]
[349811170,1737443431993,-20353.33276284,0.00020761,2]
[349811171,1737443432003,-532.01,0.00020783,30]
[349811172,1737443432012,-565.17,0.00020799,2]
[349811173,1737443432022,-250.0,0.00020822,2]
[349811174,1737443432031,-767.68,0.0002086,2]
[349811175,1737443432041,-250.0,0.00020905,2]
[349811176,1737443432052,-1000.0,0.00020937,2]
[349811177,1737443432061,-560.32,0.00020937,2]
[349811178,1737443432071,-200.36,0.00020981,2]
[349811179,1737443432080,-152.64,0.00021178,2]
[349811180,1737443432089,-150.0,0.00021178,2]
[349811181,1737443432100,-150.0,0.00021178,2]
[349811182,1737443432109,-150.0,0.00021178,2]
[349811183,1737443432119,-150.0,0.00021178,2]
[349811184,1737443432129,-169.64,0.00021339,2]
[349811185,1737443432138,-200.41293131,0.0002146,2]
[349811186,1737443432147,-450.0,0.0002146,2]
[349811187,1737443432157,-32059.68626512,0.000215,3]
[349811188,1737443432166,-298.9764879,0.0002156,2]
[349811189,1737443432175,-768.99,0.000216,2]
[349811190,1737443432185,-150.0,0.0002166,2]
[349811191,1737443432194,-1617.73501375,0.0002166,2]
[349811192,1737443432205,-2284.26498625,0.0002166,2]
[349811193,1737443432215,-1671.45,0.000217,2]
[349811194,1737443432224,-1160.21315608,0.000217,2]
[349811195,1737443432240,-2566.59304392,0.000217,2]
[349811196,1737443432249,-3000.0,0.0002178,2]
[349811197,1737443432258,-430.3178249,0.00021796,2]
[349811198,1737443432267,-154.56273338,0.00021799,2]
[349811199,1737443432277,-1225.807,0.00021799,2]
[349811200,1737443432287,-326.38241131,0.00021799,2]
[349811201,1737443432298,-18419.4208,0.000218,2]
[349811202,1737443432307,-500.0,0.000218,2]
[349811203,1737443432316,-1000.0,0.000218,2]
[349811204,1737443432325,-326.38241125,0.0002181,2]
[349811205,1737443432334,-326.38241125,0.00021821,2]
[349811206,1737443432343,-500.0,0.00021824,2]
[349811207,1737443432353,-326.38241125,0.00021833,2]
[349811208,1737443432363,-326.38241125,0.00021844,2]
[349811209,1737443432372,-326.38241125,0.00021855,2]
[349811210,1737443432381,-326.38241125,0.00021866,2]
[349811211,1737443432390,-3261.90588617,0.00021875,2]
[349811212,1737443432399,-326.38241125,0.00021878,2]
[349811213,1737443432408,-326.38241125,0.00021889,2]
[349811214,1737443432418,-500.0,0.0002189,2]
[349811215,1737443432427,-2500.0,0.00021898,2]
[349811216,1737443432435,-6468.3138,0.00021899,2]
[349811217,1737443432446,-1653.05,0.00021899,2]
[349811218,1737443432455,-9030.84924622,0.00021899,2]
[349811220,1737443432466,-450.653,0.00021899,2]
[349811222,1737443432476,-2353.3,0.00021899,2]
[349811224,1737443432487,-14010.77610045,0.00021899,2]
[349811252,1737443437885,-9759.70041228,0.00021899,2]
[349811253,1737443438029,-179.55954105,0.00021899,2]
[349811254,1737443438039,-3120.5022,0.00021899,2]
[349811255,1737443438050,-207.95783466,0.00021899,2]
[349811256,1737443438059,-559.4782,0.000219,2]
[349811257,1737443438068,-959.25436699,0.000219,2]
[349811258,1737443438080,-4040.74563301,0.000219,2]
[349811269,1737443438255,-169.56200885,0.000219,2]
[349811271,1737443438265,-1076.3324457,0.000219,2]
[349811273,1737443438274,-326.38241125,0.000219,2]
[349811275,1737443438284,-352.98542265,0.000219,2]
[349811277,1737443438292,-1536.85093632,0.000219,2]
[349811279,1737443438303,-931.91,0.000219,31]
[349811281,1737443438312,-931.91,0.000219,31]
[349811283,1737443438321,-268.21988127,0.000219,31]
[349811285,1737443438333,-663.69011873,0.000219,31]
[349811287,1737443438343,-931.91,0.000219,31]
[349811289,1737443438352,-931.91,0.000219,31]
[349811291,1737443438361,-931.91,0.000219,31]
[349811293,1737443438370,-931.91,0.000219,31]
[349811295,1737443438380,-931.91,0.000219,31]
[349811297,1737443438389,-931.91,0.000219,31]
[349811299,1737443438399,-931.91,0.000219,31]
[349811301,1737443438408,-931.91,0.000219,31]
[349811303,1737443438417,-931.91,0.000219,31]
[349811305,1737443438426,-931.91,0.000219,31]
[349811307,1737443438435,-931.91,0.000219,31]
[349811309,1737443438445,-931.91,0.000219,31]
[349811310,1737443438454,-931.91,0.000219,31]
[349811312,1737443438464,-460.01426072,0.000219,2]
[349811313,1737443438472,-150.0,0.00021918,2]
[349811315,1737443438481,-2000.0,0.00021918,30]
[349811317,1737443438491,-2000.0,0.00021945,30]
[349811319,1737443438500,-463.0,0.00021973,2]
[349811321,1737443438508,-150.0,0.00021973,4]
[349811323,1737443438517,-150.0,0.00021973,4]
[349811325,1737443438526,-150.0,0.00021973,4]
[349811327,1737443438535,-503.87312594,0.00021973,2]
[349811329,1737443438546,-500.0,0.00021973,2]
[349811331,1737443438555,-657.12610711,0.00021973,30]
[349811363,1737443439803,-165.1931762,0.000219,2]
[349811364,1737443439813,-1342.87389289,0.00021973,30]
[349811365,1737443439822,-469.07037734,0.00021998,10]
[349811366,1737443439831,-370.64598189,0.00021998,2]
[349811367,1737443439840,-1009.58,0.00021998,2]
[349811368,1737443439851,-500.0,0.00021998,2]
[349811369,1737443439862,-500.0,0.00021998,2]
[349811370,1737443439872,-500.0,0.00021998,2]
[349811371,1737443439884,-1262.97,0.00021998,2]
[349811372,1737443439893,-500.0,0.00021998,2]
[349811373,1737443439903,-500.0,0.00021998,2]
[349811374,1737443439912,-500.0,0.00021998,2]
[349811375,1737443439921,-796.07,0.00021998,2]
[349811376,1737443439930,-500.0,0.00021998,2]
[349811377,1737443439940,-519.05,0.00021998,2]
[349811378,1737443439949,-672.64,0.00021998,2]
[349811379,1737443439958,-944.32,0.00021998,2]
[349811380,1737443439967,-500.0,0.00021998,2]
[349811381,1737443439977,-878.23,0.00021998,2]
[349811382,1737443439986,-500.0,0.00021998,2]
[349811383,1737443439995,-214.34757626,0.00021998,2]
[349811384,1737443440214,-390.92242374,0.00021998,2]
[349811385,1737443440224,-120.70659132,0.00021998,2]
[349811386,1737443440235,-379.29340868,0.00021998,2]
[349811387,1737443440245,-163.32923176,0.00021998,2]
[349811389,1737443440254,-500.0,0.00021998,2]
[349811391,1737443440263,-500.0,0.00021998,2]
[349811393,1737443440272,-208.48122148,0.00021998,2]
[349811395,1737443440283,-291.51877852,0.00021998,2]
[349811397,1737443440292,-500.0,0.00021998,2]
[349811399,1737443440302,-500.0,0.00021998,2]
[349811400,1737443440310,-432.68122048,0.00021998,2]
[349811409,1737443443022,-186.6,0.00021007,2]
[349811410,1737443443032,-67.31877952,0.00021998,2]
[349811411,1737443443041,-500.0,0.00021998,2]
[349811412,1737443443053,-500.0,0.00021998,2]
[349811413,1737443443063,-500.0,0.00021998,2]
[349811414,1737443443072,-290.13698338,0.00021998,2]
[349811423,1737443445670,-209.86301662,0.00021998,2]
[349811424,1737443445680,-500.0,0.00021998,2]
[349811425,1737443445690,-500.0,0.00021998,2]
[349811426,1737443445699,-500.0,0.00021998,2]
[349811427,1737443445709,-123.45561978,0.00021998,2]
[349811428,1737443445855,-376.54438022,0.00021998,2]
[349811429,1737443445865,-500.0,0.00021998,2]
[349811430,1737443445875,-500.0,0.00021998,2]
[349811431,1737443445885,-500.0,0.00021998,2]
[349811432,1737443445896,-127.70561978,0.00021998,2]
[349811433,1737443446093,-372.29438022,0.00021998,2]
[349811434,1737443446104,-500.0,0.00021998,2]
[349811435,1737443446113,-500.0,0.00021998,2]
[349811436,1737443446123,-638.33,0.00021998,2]
[349811437,1737443446133,-500.0,0.00021998,2]
[349811438,1737443446142,-500.0,0.00021998,2]
[349811440,1737443446152,-500.0,0.00021998,2]
[349811442,1737443446161,-500.0,0.00021998,2]
[349811444,1737443446170,-500.0,0.00021998,2]
[349811446,1737443446180,-500.0,0.00021998,2]
[349811448,1737443446190,-500.0,0.00021998,2]
[349811450,1737443446199,-500.0,0.00021998,2]
[349811453,1737443446217,-500.0,0.00021998,2]
[349811455,1737443446228,-500.0,0.00021998,2]
[349811457,1737443446238,-1131.2714598,0.00021998,2]
[349811627,1737443703691,158.48321308,0.00024,120]
[349811628,1737443959084,197.16823451,0.00024,120]
[349811629,1737444308241,429719.66686199,0.00012,2]
[349811631,1737444437114,-739.04994654,0.000187,2]
[349811632,1737444480658,167.29,0.00010137,2]
[349811650,1737444545087,-550.0,0.00015,2]
[349811651,1737444545111,-167.29,0.00016813,2]
[349811652,1737444545132,-200.0,0.000185,10]
[349811653,1737444545154,-108.85005346,0.000187,2]
[349811654,1737444545175,-250.0,0.00018706,2]
[349811655,1737444545350,211.8060656,0.00016713,2]
[349811666,1737444631936,-200.80139035,0.000199,2]
[349811667,1737444631947,-265.81901751,0.000199,2]
[349811668,1737444631956,-1529.85685283,0.0002,2]
[349811669,1737444631965,-913.54250178,0.0002,2]
[349811670,1737444631976,-4463.8664261,0.0002,2]
[349811671,1737444631986,-200.0,0.0002,20]
[349811672,1737444631995,-282.58,0.0002041,2]
[349811673,1737444632003,-423.27,0.0002048,2]
[349811674,1737444632012,-160.28,0.00020661,2]
[349811675,1737444632022,-250.0,0.00020723,2]
[349811676,1737444632031,-338.42,0.0002077,2]
[349811677,1737444632041,-1337.897,0.00020825,2]
[349811678,1737444632050,-220.94363124,0.00020825,2]
[349811679,1737444632059,-180.41,0.00020829,2]
[349811680,1737444632069,-536.35,0.00020837,30]
[349811681,1737444632078,-547.64919002,0.00020889,2]
[349811682,1737444632087,-300.0,0.00020889,2]
[349811683,1737444632096,-23900.0,0.0002089,2]
[349811684,1737444632105,-250.0,0.00020901,2]
[349811685,1737444632114,-250.0,0.00020925,2]
[349811686,1737444632123,-1000.0,0.00020927,2]
[349811687,1737444632132,-847.9,0.00020964,2]
[349811688,1737444632141,-1890.23,0.00021257,2]
[349811689,1737444632150,-176.35,0.00021405,2]
[349811690,1737444632159,-200.80139035,0.00021598,2]
[349811691,1737444632168,-1638.5,0.000216,2]
[349811692,1737444632178,-2940.84,0.00021685,7]
[349811693,1737444632187,-2940.84,0.00021685,7]
[349811694,1737444632196,-2940.84,0.00021685,7]
[349811695,1737444632205,-2940.84,0.00021685,7]
[349811696,1737444632214,-5276.85963499,0.00021698,2]
[349811697,1737444632225,-217.76122678,0.00021698,2]
[349811698,1737444632235,-482.00340273,0.00021698,2]
[349811699,1737444632244,-155.73109994,0.00021698,3]
[349811700,1737444632254,-1637.5648,0.00021699,2]
[349811701,1737444632267,-16364.0761,0.000217,2]
[349811702,1737444632277,-160.62321354,0.000217,2]
[349811703,1737444632287,-1000.0,0.00021748,2]
[349811704,1737444632296,-152.0,0.00021752,3]
[349811705,1737444632308,-150.0,0.00021766,2]
[349811706,1737444632318,-159.95486234,0.00021773,2]
[349811707,1737444632327,-500.0,0.00021773,2]
[349811708,1737444632337,-161.95993451,0.00021773,2]
[349811709,1737444632347,-500.0,0.00021773,2]
[349811710,1737444632356,-3000.0,0.0002178,2]
[349811711,1737444632365,-802.0,0.00021781,2]
[349811712,1737444632374,-6345.0,0.00021781,2]
[349811713,1737444632384,-150.0,0.00021782,2]
[349811714,1737444632393,-150.0,0.00021783,2]
[349811715,1737444632402,-150.0,0.00021784,2]
[349811716,1737444632411,-154.95,0.00021788,2]
[349811717,1737444632421,-154.95,0.00021788,2]
[349811718,1737444632430,-154.95,0.00021788,2]
[349811719,1737444632439,-154.95,0.00021788,2]
[349811720,1737444632451,-550.26516278,0.00021788,2]
[349811721,1737444632461,-550.26516278,0.00021788,2]
[349811722,1737444632470,-550.26516278,0.00021788,2]
[349811723,1737444632479,-1123663.35661323,0.00021796,3]
[349811724,1737444632488,-666.0,0.00021797,2]
[349811725,1737444632497,-500.0,0.00021797,2]
[349811726,1737444632508,-500.0,0.00021797,2]
[349811727,1737444632518,-500.0,0.00021797,2]
[349811728,1737444632528,-500.0,0.00021797,2]
[349811729,1737444632537,-500.0,0.00021797,2]
[349811730,1737444632546,-500.0,0.00021797,2]
[349811731,1737444632555,-500.0,0.00021797,2]
[349811732,1737444632564,-500.0,0.00021797,2]
[349811733,1737444632574,-500.0,0.00021797,2]
[349811734,1737444632583,-500.0,0.00021797,2]
[349811735,1737444632591,-500.0,0.00021797,2]
[349811736,1737444632601,-520.49399072,0.00021797,2]
[349811737,1737444632610,-500.0,0.00021797,2]
[349811739,1737444632619,-13493.34,0.00021797,2]
[349811741,1737444632628,-500.0,0.00021797,2]
[349811743,1737444632637,-500.0,0.00021797,2]
[349811745,1737444632646,-503.81658871,0.00021797,2]
[349811747,1737444632656,-500.0,0.00021797,2]
[349811749,1737444632665,-500.0,0.00021797,2]
[349811751,1737444632675,-502.75653172,0.00021797,2]
[349811753,1737444632684,-500.0,0.00021797,2]
[349811755,1737444632694,-517.76214273,0.00021797,2]
[349811757,1737444632703,-183.95555617,0.00021797,2]
[349811759,1737444632713,-9552.40248591,0.00021797,2]
[349811761,1737444632723,-1000.0,0.00021798,2]
[349811762,1737444632732,-5000.0,0.00021798,2]
[349811764,1737444632742,-171.79791577,0.00021799,2]
[349811766,1737444632752,-1448.48605072,0.00021799,2]
[349811768,1737444632761,-5276.85963497,0.00021799,2]
[349811770,1737444632770,-217.76122678,0.00021799,2]
[349811772,1737444632780,-482.00340272,0.00021799,2]
[349811774,1737444632789,-853.8522,0.000218,2]
[349811776,1737444632798,-23992.0151,0.000218,2]
[349811778,1737444632807,-981.79,0.000218,2]
[349811780,1737444632816,-979.83,0.000218,2]
[349811782,1737444632827,-160.62321352,0.000218,2]
[349811783,1737444632836,-298.01,0.00021808,2]
[349811784,1737444632845,-298.01,0.00021808,2]
[349811785,1737444632854,-298.01,0.00021808,2]
[349811786,1737444632863,-298.01,0.00021808,2]
[349811787,1737444632871,-298.01,0.00021808,2]
[349811788,1737444632881,-298.01,0.00021808,2]
[349811789,1737444632890,-298.01,0.00021808,2]
[349811790,1737444632899,-298.01,0.00021808,2]
[349811791,1737444632908,-298.01,0.00021808,2]
[349811792,1737444632917,-151.27131971,0.00021812,2]
[349811793,1737444632926,-828.79274622,0.00021814,2]
[349811794,1737444633107,-171.79791572,0.00021819,2]
[349811795,1737444633117,-500.0,0.00021824,2]
[349811796,1737444633127,-150.0,0.00021824,2]
[349811797,1737444633137,-150.0,0.00021837,2]
[349811798,1737444633147,-171.79791572,0.00021839,2]
[349811799,1737444633157,-1000.0,0.0002184,2]
[349811800,1737444633167,-1000.0,0.00021842,2]
[349811801,1737444633177,-171.79791572,0.0002186,2]
[349811802,1737444633186,-500.0,0.00021873,2]
[349811803,1737444633196,-500.0,0.00021873,2]
[349811804,1737444633205,-353.86985071,0.00021873,2]
[349811805,1737444633215,-171.79791572,0.0002188,2]
[349811806,1737444633224,-500.0,0.0002189,2]
[349811807,1737444633237,-1360.8027,0.00021897,2]
[349811808,1737444633246,-500.0,0.00021897,2]
[349811809,1737444633256,-500.0,0.00021897,2]
[349811810,1737444633266,-708.43,0.00021897,2]
[349811811,1737444633277,-667.32,0.00021897,2]
[349811812,1737444633286,-500.0,0.00021897,2]
[349811813,1737444633296,-500.0,0.00021897,2]
[349811814,1737444633306,-762.9,0.00021897,2]
[349811815,1737444633316,-500.0,0.00021897,2]
[349811816,1737444633325,-679.71,0.00021897,2]
[349811817,1737444633334,-500.0,0.00021897,2]
[349811818,1737444633343,-388.54465912,0.00021897,2]
[349811819,1737444633352,-500.0,0.00021897,2]
[349811820,1737444633362,-236.20165571,0.00021897,2]
[349811821,1737444633371,-500.0,0.00021897,2]
[349811822,1737444633380,-500.0,0.00021897,2]
[349811823,1737444633390,-500.0,0.00021897,2]
[349811824,1737444633400,-500.0,0.00021897,2]
[349811825,1737444633409,-500.0,0.00021897,2]
[349811826,1737444633418,-611.74,0.00021897,2]
[349811827,1737444633427,-500.0,0.00021897,2]
[349811828,1737444633437,-500.0,0.00021897,2]
[349811829,1737444633447,-279.33,0.00021897,2]
[349811830,1737444633456,-500.0,0.00021897,2]
[349811831,1737444633467,-500.0,0.00021897,2]
[349811832,1737444633477,-500.0,0.00021897,2]
[349811833,1737444633486,-1115.87,0.00021897,2]
[349811834,1737444633495,-292.51,0.00021897,2]
[349811835,1737444633505,-500.0,0.00021897,2]
[349811836,1737444633515,-512.66,0.00021897,2]
[349811837,1737444633525,-673.59653589,0.00021898,2]
[349811838,1737444633534,-500.0,0.00021898,2]
[349811839,1737444633544,-565.75,0.00021898,2]
[349811840,1737444633553,-1009.18,0.00021898,2]
[349811841,1737444633562,-500.0,0.00021898,2]
[349811842,1737444633573,-500.0,0.00021898,2]
[349811843,1737444633582,-500.0,0.00021898,2]
[349811844,1737444633592,-500.0,0.00021898,2]
[349811845,1737444633602,-336.70705602,0.00021898,2]
[349811846,1737444633611,-570.81763342,0.00021898,2]
[349811847,1737444633620,-500.0,0.00021898,2]
[349811848,1737444633629,-500.0,0.00021898,2]
[349811849,1737444633639,-500.0,0.00021898,2]
[349811850,1737444633648,-491.75515282,0.00021898,2]
[349811851,1737444633657,-500.0,0.00021898,2]
[349811852,1737444633666,-500.0,0.00021898,2]
[349811853,1737444633675,-500.0,0.00021898,2]
[349811854,1737444633684,-928.78,0.00021898,2]
[349811855,1737444633693,-500.0,0.00021898,2]
[349811856,1737444633702,-554.1,0.00021898,2]
[349811857,1737444633712,-1004.92,0.00021898,2]
[349811858,1737444633721,-252.84,0.00021898,2]
[349811859,1737444633730,-500.0,0.00021898,2]
[349811860,1737444633740,-500.0,0.00021898,2]
[349811861,1737444633749,-500.0,0.00021898,2]
[349811862,1737444633758,-645.05,0.00021898,2]
[349811863,1737444633768,-500.0,0.00021898,2]
[349811864,1737444633777,-500.0,0.00021898,2]
[349811865,1737444633788,-569.61,0.00021898,2]
[349811866,1737444633797,-500.0,0.00021898,2]
[349811867,1737444633806,-507.97,0.00021898,2]